[Event "December 5 Late 2023"]
[Site "https://www.chess.com"]
[Date "2023.12.05"]
[Round "10"]
[White "Maksimovic, Bojan"]
[Black "Nepomniachtchi, Ian"]
[Result "1/2-1/2"]
[Board "8"]
[TimeControl "180+1"]
[WhiteFideId "14408120"]
[BlackFideId "4168119"]
[WhiteElo "2935"]
[BlackElo "3100"]
[WhiteTeam "BIH"]
[BlackTeam "RUS"]
[WhiteClock "0:00:06"]
[BlackClock "0:00:15"]

1. Nf3 {[%clk 0:03:00]}  c5 {[%clk 0:02:55]} 2. g3 {[%clk 0:02:58]}  Nc6 {[%clk 0:02:54]} 3. d4 {[%clk 0:02:58]}  cxd4 {[%clk 0:02:53]} 4. Nxd4 {[%clk 0:02:58]}  Qb6 {[%clk 0:02:53]} 5. Nb3 {[%clk 0:02:51]}  Nf6 {[%clk 0:02:52]} 6. Bg2 {[%clk 0:02:51]}  h5 {[%clk 0:02:52]} 7. Nc3 {[%clk 0:02:46]}  h4 {[%clk 0:02:51]} 8. Be3 {[%clk 0:02:44]}  Qd8 {[%clk 0:02:51]} 9. Qd2 {[%clk 0:02:40]}  h3 {[%clk 0:02:49]} 10. Bf3 {[%clk 0:02:36]}  Ne5 {[%clk 0:02:49]} 11. O-O-O {[%clk 0:02:34]}  Nc4 {[%clk 0:02:41]} 12. Qd3 {[%clk 0:02:32]}  Nxe3 {[%clk 0:02:41]} 13. Qxe3 {[%clk 0:02:32]}  g6 {[%clk 0:02:41]} 14. Kb1 {[%clk 0:02:32]}  Bg7 {[%clk 0:02:39]} 15. g4 {[%clk 0:02:29]}  d6 {[%clk 0:02:34]} 16. Rhg1 {[%clk 0:02:07]}  Nd7 {[%clk 0:02:28]} 17. g5 {[%clk 0:02:01]}  Ne5 {[%clk 0:02:27]} 18. Be4 {[%clk 0:01:49]}  Be6 {[%clk 0:02:02]} 19. f4 {[%clk 0:01:45]}  Nc4 {[%clk 0:02:02]} 20. Qd3 {[%clk 0:01:45]}  Rc8 {[%clk 0:02:00]} 21. Nd4 {[%clk 0:01:00]}  Qb6 {[%clk 0:01:58]} 22. Na4 {[%clk 0:00:58]}  Qb4 {[%clk 0:01:52]} 23. Nxe6 {[%clk 0:00:30]}  fxe6 {[%clk 0:01:34]} 24. Bxg6+ {[%clk 0:00:29]}  Kf8 {[%clk 0:01:11]} 25. Qb3 {[%clk 0:00:26]}  Qxb3 {[%clk 0:01:00]} 26. axb3 {[%clk 0:00:26]}  Ne3 {[%clk 0:01:00]} 27. Rd3 {[%clk 0:00:27]}  Nd5 {[%clk 0:01:00]} 28. Rf1 {[%clk 0:00:26]}  b5 {[%clk 0:00:59]} 29. f5 {[%clk 0:00:23]}  bxa4 {[%clk 0:00:49]} 30. fxe6+ {[%clk 0:00:23]}  Nf6 {[%clk 0:00:49]} 31. gxf6 {[%clk 0:00:22]}  Bxf6 {[%clk 0:00:49]} 32. bxa4 {[%clk 0:00:21]}  Rh4 {[%clk 0:00:48]} 33. b3 {[%clk 0:00:19]}  Rc5 {[%clk 0:00:46]} 34. Bf5 {[%clk 0:00:18]}  Rh5 {[%clk 0:00:33]} 35. Bxh3 {[%clk 0:00:17]}  Rce5 {[%clk 0:00:32]} 36. Bg4 {[%clk 0:00:15]}  Rxh2 {[%clk 0:00:32]} 37. Rg1 {[%clk 0:00:15]}  Rg5 {[%clk 0:00:30]} 38. Rdg3 {[%clk 0:00:12]}  Rf2 {[%clk 0:00:27]} 39. Kc1 {[%clk 0:00:09]}  Be5 {[%clk 0:00:24]} 40. Rf3+ {[%clk 0:00:08]}  Bf4+ {[%clk 0:00:17]} 41. Kd1 {[%clk 0:00:08]}  Rxf3 {[%clk 0:00:17]} 42. exf3 {[%clk 0:00:09]}  Rd5+ {[%clk 0:00:18]} 43. Ke1 {[%clk 0:00:06]}  Rd2 {[%clk 0:00:18]} 44. Rh1 {[%clk 0:00:05]}  Kg7 {[%clk 0:00:18]} 45. Bf5 {[%clk 0:00:03]}  Kf6 {[%clk 0:00:18]} 46. Bd3 {[%clk 0:00:03]}  Rg2 {[%clk 0:00:18]} 47. Rh8 {[%clk 0:00:02]}  Kxe6 {[%clk 0:00:17]} 48. Ra8 {[%clk 0:00:03]}  Be3 {[%clk 0:00:17]} 49. Re8 {[%clk 0:00:02]}  Kf6 {[%clk 0:00:17]} 50. Rc8 {[%clk 0:00:02]}  d5 {[%clk 0:00:17]} 51. Rd8 {[%clk 0:00:02]}  e6 {[%clk 0:00:17]} 52. Rd6 {[%clk 0:00:02]}  Ke5 {[%clk 0:00:18]} 53. Ra6 {[%clk 0:00:02]}  Bd4 {[%clk 0:00:17]} 54. b4 {[%clk 0:00:02]}  Bc3+ {[%clk 0:00:11]} 55. Kf1 {[%clk 0:00:02]}  Rh2 {[%clk 0:00:12]} 56. b5 {[%clk 0:00:03]}  Kf4 {[%clk 0:00:11]} 57. Rxe6 {[%clk 0:00:02]}  Kxf3 {[%clk 0:00:11]} 58. Kg1 {[%clk 0:00:03]}  Rg2+ {[%clk 0:00:11]} 59. Kh1 {[%clk 0:00:03]}  Rg7 {[%clk 0:00:12]} 60. Rd6 {[%clk 0:00:02]}  Re7 {[%clk 0:00:09]} 61. Rxd5 {[%clk 0:00:02]}  Re1+ {[%clk 0:00:09]} 62. Kh2 {[%clk 0:00:03]}  Be5+ {[%clk 0:00:10]} 63. Rxe5 {[%clk 0:00:02]}  Rxe5 {[%clk 0:00:11]} 64. a5 {[%clk 0:00:03]}  Kf2 {[%clk 0:00:11]} 65. Kh3 {[%clk 0:00:03]}  Kf3 {[%clk 0:00:11]} 66. Kh4 {[%clk 0:00:04]}  Kf4 {[%clk 0:00:11]} 67. a6 {[%clk 0:00:03]}  Re6 {[%clk 0:00:11]} 68. Kh5 {[%clk 0:00:03]}  Rf6 {[%clk 0:00:11]} 69. Bc4 {[%clk 0:00:03]}  Rd6 {[%clk 0:00:10]} 70. Bd3 {[%clk 0:00:03]}  Rb6 {[%clk 0:00:11]} 71. Bc4 {[%clk 0:00:03]}  Rf6 {[%clk 0:00:11]} 72. Bd3 {[%clk 0:00:03]}  Re6 {[%clk 0:00:11]} 73. Bc4 {[%clk 0:00:03]}  Rd6 {[%clk 0:00:11]} 74. Bd3 {[%clk 0:00:04]}  Rb6 {[%clk 0:00:08]} 75. Bc4 {[%clk 0:00:04]}  Ke5 {[%clk 0:00:08]} 76. Kg5 {[%clk 0:00:04]}  Kd4 {[%clk 0:00:08]} 77. Bd3 {[%clk 0:00:05]}  Kc5 {[%clk 0:00:09]} 78. Kf5 {[%clk 0:00:06]}  Rd6 {[%clk 0:00:10]} 79. Ke5 {[%clk 0:00:06]}  Rd4 {[%clk 0:00:09]} 80. Kf5 {[%clk 0:00:06]}  Rb4 {[%clk 0:00:09]} 81. Ke5 {[%clk 0:00:06]}  Rb1 {[%clk 0:00:09]} 82. Ke4 {[%clk 0:00:06]}  Re1+ {[%clk 0:00:09]} 83. Kf3 {[%clk 0:00:07]}  Kd4 {[%clk 0:00:10]} 84. Kf2 {[%clk 0:00:05]}  Rb1 {[%clk 0:00:10]} 85. Ke2 {[%clk 0:00:05]}  Ra1 {[%clk 0:00:10]} 86. Kd2 {[%clk 0:00:05]}  Ra3 {[%clk 0:00:10]} 87. Be2 {[%clk 0:00:04]}  Rh3 {[%clk 0:00:10]} 88. Bd3 {[%clk 0:00:05]}  Rh2+ {[%clk 0:00:11]} 89. Kc1 {[%clk 0:00:05]}  Kc3 {[%clk 0:00:11]} 90. Kb1 {[%clk 0:00:05]}  Rh4 {[%clk 0:00:11]} 91. Ka2 {[%clk 0:00:05]}  Ra4+ {[%clk 0:00:11]} 92. Kb1 {[%clk 0:00:06]}  Ra5 {[%clk 0:00:11]} 93. Be2 {[%clk 0:00:06]}  Ra3 {[%clk 0:00:11]} 94. Bd3 {[%clk 0:00:06]}  Ra4 {[%clk 0:00:07]} 95. Be2 {[%clk 0:00:03]}  Rb4+ {[%clk 0:00:08]} 96. Kc1 {[%clk 0:00:03]}  Re4 {[%clk 0:00:09]} 97. Kd1 {[%clk 0:00:04]}  Rh4 {[%clk 0:00:08]} 98. Bd3 {[%clk 0:00:04]}  Rh2 {[%clk 0:00:09]} 99. Ke1 {[%clk 0:00:04]}  Kd4 {[%clk 0:00:09]} 100. Kf1 {[%clk 0:00:04]}  Ke3 {[%clk 0:00:09]} 101. Kg1 {[%clk 0:00:03]}  Rh6 {[%clk 0:00:09]} 102. Bc4 {[%clk 0:00:03]}  Rd6 {[%clk 0:00:09]} 103. Kg2 {[%clk 0:00:03]}  Rd4 {[%clk 0:00:09]} 104. Bd3 {[%clk 0:00:03]}  Rg4+ {[%clk 0:00:09]} 105. Kh3 {[%clk 0:00:03]}  Rg7 {[%clk 0:00:10]} 106. Kh4 {[%clk 0:00:03]}  Kf4 {[%clk 0:00:10]} 107. Kh5 {[%clk 0:00:03]}  Ke5 {[%clk 0:00:11]} 108. Kh6 {[%clk 0:00:03]}  Re7 {[%clk 0:00:11]} 109. Kh5 {[%clk 0:00:04]}  Kf6 {[%clk 0:00:11]} 110. Kg4 {[%clk 0:00:04]}  Ke5 {[%clk 0:00:12]} 111. Kf3 {[%clk 0:00:05]}  Rc7 {[%clk 0:00:12]} 112. Ke3 {[%clk 0:00:05]}  Kd5 {[%clk 0:00:13]} 113. Kd2 {[%clk 0:00:05]}  Kc5 {[%clk 0:00:13]} 114. Kc3 {[%clk 0:00:05]}  Re7 {[%clk 0:00:14]} 115. Kb3 {[%clk 0:00:05]}  Re3 {[%clk 0:00:14]} 116. Kc3 {[%clk 0:00:06]}  Rh3 {[%clk 0:00:15]} 117. Kb3 {[%clk 0:00:06]} 1/2-1/2

[Event "December 5 Late 2023"]
[Site "https://www.chess.com"]
[Date "2023.12.05"]
[Round "10"]
[White "Sarana, Alexey"]
[Black "Cieslak, Patryk"]
[Result "1-0"]
[Board "10"]
[TimeControl "180+1"]
[WhiteFideId "24133795"]
[BlackFideId "21078882"]
[WhiteElo "3017"]
[BlackElo "2681"]
[WhiteTeam "SRB"]
[BlackTeam "POL"]
[WhiteClock "0:00:11"]
[BlackClock "0:00:01"]

1. d4 {[%clk 0:03:00]}  d5 {[%clk 0:03:00]} 2. c4 {[%clk 0:03:01]}  c6 {[%clk 0:03:00]} 3. Nc3 {[%clk 0:03:01]}  Nf6 {[%clk 0:03:01]} 4. Nf3 {[%clk 0:03:02]}  e6 {[%clk 0:03:00]} 5. Bg5 {[%clk 0:03:01]}  dxc4 {[%clk 0:02:59]} 6. e4 {[%clk 0:03:01]}  b5 {[%clk 0:03:00]} 7. e5 {[%clk 0:03:01]}  h6 {[%clk 0:03:00]} 8. Bh4 {[%clk 0:03:02]}  g5 {[%clk 0:03:01]} 9. Nxg5 {[%clk 0:03:02]}  hxg5 {[%clk 0:03:01]} 10. Bxg5 {[%clk 0:03:03]}  Nbd7 {[%clk 0:03:01]} 11. exf6 {[%clk 0:03:02]}  Bb7 {[%clk 0:03:02]} 12. g3 {[%clk 0:03:02]}  c5 {[%clk 0:03:02]} 13. d5 {[%clk 0:03:02]}  Qb6 {[%clk 0:03:03]} 14. Bg2 {[%clk 0:03:02]}  O-O-O {[%clk 0:03:03]} 15. O-O {[%clk 0:02:57]}  b4 {[%clk 0:03:04]} 16. Na4 {[%clk 0:02:57]}  Qb5 {[%clk 0:03:02]} 17. a3 {[%clk 0:02:31]}  Bxd5 {[%clk 0:03:00]} 18. Bxd5 {[%clk 0:02:28]}  Ne5 {[%clk 0:03:00]} 19. axb4 {[%clk 0:02:11]}  Rxd5 {[%clk 0:02:54]} 20. Qe2 {[%clk 0:02:06]}  Qc6 {[%clk 0:02:48]} 21. b5 {[%clk 0:01:47]}  Qb7 {[%clk 0:02:34]} 22. Nc3 {[%clk 0:01:47]}  Bd6 {[%clk 0:02:22]} 23. Nxd5 {[%clk 0:01:28]}  Qxd5 {[%clk 0:02:22]} 24. f3 {[%clk 0:01:29]}  Kb7 {[%clk 0:02:12]} 25. Qe4 {[%clk 0:01:26]}  Nd3 {[%clk 0:02:12]} 26. Ra6 {[%clk 0:01:21]}  Bc7 {[%clk 0:01:03]} 27. Rb1 {[%clk 0:00:51]}  Kb8 {[%clk 0:00:56]} 28. Qxd5 {[%clk 0:00:39]}  exd5 {[%clk 0:00:57]} 29. Kg2 {[%clk 0:00:40]}  Nb4 {[%clk 0:00:55]} 30. Ra4 {[%clk 0:00:38]}  Nc2 {[%clk 0:00:51]} 31. h4 {[%clk 0:00:36]}  Nd4 {[%clk 0:00:52]} 32. g4 {[%clk 0:00:33]}  Ne6 {[%clk 0:00:44]} 33. Rh1 {[%clk 0:00:32]}  Kb7 {[%clk 0:00:42]} 34. Bd2 {[%clk 0:00:32]}  Be5 {[%clk 0:00:34]} 35. Bc3 {[%clk 0:00:25]}  Nf4+ {[%clk 0:00:31]} 36. Kf1 {[%clk 0:00:23]}  d4 {[%clk 0:00:31]} 37. Bd2 {[%clk 0:00:23]}  Nd5 {[%clk 0:00:19]} 38. Rxc4 {[%clk 0:00:23]}  Kb6 {[%clk 0:00:19]} 39. g5 {[%clk 0:00:21]}  Kxb5 {[%clk 0:00:19]} 40. b3 {[%clk 0:00:21]}  Nb6 {[%clk 0:00:19]} 41. Rc1 {[%clk 0:00:21]}  c4 {[%clk 0:00:19]} 42. f4 {[%clk 0:00:20]}  Bd6 {[%clk 0:00:12]} 43. bxc4+ {[%clk 0:00:20]}  Nxc4 {[%clk 0:00:13]} 44. Rb1+ {[%clk 0:00:21]}  Kc6 {[%clk 0:00:12]} 45. Bc1 {[%clk 0:00:21]}  d3 {[%clk 0:00:11]} 46. Rh2 {[%clk 0:00:21]}  a5 {[%clk 0:00:06]} 47. Rb3 {[%clk 0:00:20]}  d2 {[%clk 0:00:04]} 48. Bxd2 {[%clk 0:00:20]}  a4 {[%clk 0:00:04]} 49. Rc3 {[%clk 0:00:20]}  Kb5 {[%clk 0:00:05]} 50. Bc1 {[%clk 0:00:21]}  Bb4 {[%clk 0:00:05]} 51. Rd3 {[%clk 0:00:21]}  Re8 {[%clk 0:00:04]} 52. Re2 {[%clk 0:00:19]}  Rc8 {[%clk 0:00:04]} 53. h5 {[%clk 0:00:18]}  a3 {[%clk 0:00:03]} 54. Bxa3 {[%clk 0:00:18]}  Nxa3 {[%clk 0:00:03]} 55. Rd7 {[%clk 0:00:18]}  Rc1+ {[%clk 0:00:04]} 56. Kg2 {[%clk 0:00:18]}  Bc5 {[%clk 0:00:03]} 57. Rxf7 {[%clk 0:00:18]}  Rg1+ {[%clk 0:00:02]} 58. Kh3 {[%clk 0:00:19]}  Nc4 {[%clk 0:00:01]} 59. h6 {[%clk 0:00:19]}  Nd6 {[%clk 0:00:01]} 60. Rd7 {[%clk 0:00:19]}  Kc6 {[%clk 0:00:01]} 61. Rd8 {[%clk 0:00:15]}  Nf5 {[%clk 0:00:02]} 62. Rc8+ {[%clk 0:00:15]}  Kd7 {[%clk 0:00:01]} 63. Rxc5 {[%clk 0:00:15]}  Ng3 {[%clk 0:00:02]} 64. Rd2+ {[%clk 0:00:14]}  Ke6 {[%clk 0:00:01]} 65. h7 {[%clk 0:00:11]}  Nf5 {[%clk 0:00:01]} 66. Re5+ {[%clk 0:00:11]}  Kf7 {[%clk 0:00:01]} 67. Rxf5 {[%clk 0:00:11]}  Kg6 {[%clk 0:00:02]} 68. Re5 {[%clk 0:00:11]}  Kh5 {[%clk 0:00:01]} 69. h8=Q+ {[%clk 0:00:11]} 1-0

[Event "December 5 Late 2023"]
[Site "https://www.chess.com"]
[Date "2023.12.05"]
[Round "10"]
[White "Zhigalko, Sergei"]
[Black "Andreikin, Dmitry"]
[Result "1/2-1/2"]
[Board "11"]
[TimeControl "180+1"]
[WhiteFideId "13502956"]
[BlackFideId "4158814"]
[WhiteElo "2947"]
[BlackElo "3104"]
[WhiteTeam "BLR"]
[BlackTeam "FID"]
[WhiteClock "0:00:14"]
[BlackClock "0:01:04"]

1. e4 {[%clk 0:03:00]}  a6 {[%clk 0:03:00]} 2. d4 {[%clk 0:03:00]}  b5 {[%clk 0:03:00]} 3. Bd3 {[%clk 0:02:59]}  Bb7 {[%clk 0:03:01]} 4. Nf3 {[%clk 0:03:00]}  e6 {[%clk 0:03:01]} 5. O-O {[%clk 0:03:00]}  c5 {[%clk 0:03:01]} 6. c3 {[%clk 0:02:59]}  Nf6 {[%clk 0:03:01]} 7. Re1 {[%clk 0:02:59]}  Be7 {[%clk 0:02:59]} 8. Bf4 {[%clk 0:02:49]}  O-O {[%clk 0:02:57]} 9. Nbd2 {[%clk 0:02:49]}  d6 {[%clk 0:02:55]} 10. Qe2 {[%clk 0:02:43]}  cxd4 {[%clk 0:02:48]} 11. cxd4 {[%clk 0:02:43]}  Nc6 {[%clk 0:02:46]} 12. Rac1 {[%clk 0:02:35]}  Rc8 {[%clk 0:02:45]} 13. h3 {[%clk 0:02:30]}  Qd7 {[%clk 0:02:19]} 14. Bb1 {[%clk 0:02:13]}  Rc7 {[%clk 0:02:11]} 15. e5 {[%clk 0:02:11]}  Nd5 {[%clk 0:02:06]} 16. Bg3 {[%clk 0:02:09]}  Rfc8 {[%clk 0:02:02]} 17. Rcd1 {[%clk 0:01:55]}  Ncb4 {[%clk 0:01:57]} 18. Ne4 {[%clk 0:01:30]}  dxe5 {[%clk 0:01:53]} 19. Nxe5 {[%clk 0:01:08]}  Qe8 {[%clk 0:01:50]} 20. a3 {[%clk 0:00:46]}  Nc2 {[%clk 0:01:49]} 21. Rf1 {[%clk 0:00:46]}  b4 {[%clk 0:01:26]} 22. Nf3 {[%clk 0:00:28]}  Rc6 {[%clk 0:01:13]} 23. Ne5 {[%clk 0:00:27]}  R6c7 {[%clk 0:01:10]} 24. Nf3 {[%clk 0:00:26]}  Rc6 {[%clk 0:01:04]} 25. Ne5 {[%clk 0:00:14]}  R6c7 {[%clk 0:01:04]} 1/2-1/2

[Event "December 5 Late 2023"]
[Site "https://www.chess.com"]
[Date "2023.12.05"]
[Round "10"]
[White "Brodsky, David"]
[Black "Paravyan, David"]
[Result "0-1"]
[Board "12"]
[TimeControl "180+1"]
[WhiteFideId "2073250"]
[BlackFideId "4194985"]
[WhiteElo "2792"]
[BlackElo "3000"]
[WhiteTeam "USA"]
[BlackTeam "FID"]
[WhiteClock "0:00:02"]
[BlackClock "0:01:16"]

1. e4 {[%clk 0:03:00]}  e5 {[%clk 0:02:58]} 2. Nf3 {[%clk 0:03:01]}  Nf6 {[%clk 0:02:58]} 3. Nxe5 {[%clk 0:02:59]}  d6 {[%clk 0:02:59]} 4. Nf3 {[%clk 0:02:58]}  Nxe4 {[%clk 0:02:59]} 5. Nc3 {[%clk 0:02:55]}  Nxc3 {[%clk 0:03:00]} 6. dxc3 {[%clk 0:02:56]}  Be7 {[%clk 0:03:00]} 7. Be3 {[%clk 0:02:56]}  O-O {[%clk 0:03:01]} 8. Qd2 {[%clk 0:02:56]}  Nd7 {[%clk 0:03:02]} 9. O-O-O {[%clk 0:02:57]}  Nf6 {[%clk 0:03:03]} 10. Kb1 {[%clk 0:02:54]}  d5 {[%clk 0:03:02]} 11. Bd3 {[%clk 0:02:53]}  c5 {[%clk 0:03:00]} 12. Rhe1 {[%clk 0:02:48]}  c4 {[%clk 0:02:46]} 13. Bf1 {[%clk 0:02:43]}  b5 {[%clk 0:02:46]} 14. Nd4 {[%clk 0:02:37]}  Bd7 {[%clk 0:02:44]} 15. f3 {[%clk 0:02:29]}  a5 {[%clk 0:02:42]} 16. Bf4 {[%clk 0:02:22]}  b4 {[%clk 0:02:41]} 17. Bc7 {[%clk 0:02:15]}  Qxc7 {[%clk 0:02:37]} 18. Rxe7 {[%clk 0:02:15]}  Qd6 {[%clk 0:02:34]} 19. Re2 {[%clk 0:01:54]}  Rab8 {[%clk 0:02:32]} 20. g4 {[%clk 0:01:39]}  Rb6 {[%clk 0:02:26]} 21. Rde1 {[%clk 0:01:03]}  Rfb8 {[%clk 0:02:23]} 22. g5 {[%clk 0:01:03]}  bxc3 {[%clk 0:02:18]} 23. Qxc3 {[%clk 0:01:03]}  Rxb2+ {[%clk 0:02:18]} 24. Ka1 {[%clk 0:01:02]}  Qb6 {[%clk 0:01:32]} 25. Nb3 {[%clk 0:00:54]}  Rxa2+ {[%clk 0:01:30]} 26. Kxa2 {[%clk 0:00:54]}  cxb3+ {[%clk 0:01:29]} 27. Qxb3 {[%clk 0:00:44]}  Qd8 {[%clk 0:01:26]} 28. Qe3 {[%clk 0:00:21]}  d4 {[%clk 0:01:20]} 29. Qe7 {[%clk 0:00:13]}  Qb6 {[%clk 0:01:17]} 30. Qa3 {[%clk 0:00:11]}  Nd5 {[%clk 0:01:17]} 31. Ka1 {[%clk 0:00:02]}  Nc3 {[%clk 0:01:16]} 0-1

[Event "December 5 Late 2023"]
[Site "https://www.chess.com"]
[Date "2023.12.05"]
[Round "10"]
[White "Urazayev, Arystanbek"]
[Black "Henriquez Villagra, Cristobal"]
[Result "1-0"]
[Board "13"]
[TimeControl "180+1"]
[WhiteFideId "13709810"]
[BlackFideId "3409350"]
[WhiteElo "2783"]
[BlackElo "2994"]
[WhiteTeam "KAZ"]
[BlackTeam "CHI"]
[WhiteClock "0:00:40"]
[BlackClock "0:00:22"]

1. d4 {[%clk 0:03:00]}  Nf6 {[%clk 0:02:59]} 2. c4 {[%clk 0:03:01]}  e6 {[%clk 0:02:58]} 3. Nc3 {[%clk 0:03:02]}  d5 {[%clk 0:02:59]} 4. e3 {[%clk 0:03:02]}  Be7 {[%clk 0:02:57]} 5. Nf3 {[%clk 0:03:01]}  O-O {[%clk 0:02:58]} 6. Bd3 {[%clk 0:03:01]}  b6 {[%clk 0:02:58]} 7. cxd5 {[%clk 0:02:59]}  exd5 {[%clk 0:02:59]} 8. O-O {[%clk 0:03:00]}  c5 {[%clk 0:02:58]} 9. b3 {[%clk 0:02:56]}  Nbd7 {[%clk 0:02:49]} 10. Bb2 {[%clk 0:02:57]}  Bb7 {[%clk 0:02:49]} 11. Qe2 {[%clk 0:02:56]}  a6 {[%clk 0:02:46]} 12. Rfd1 {[%clk 0:02:56]}  Bd6 {[%clk 0:02:46]} 13. dxc5 {[%clk 0:02:52]}  bxc5 {[%clk 0:02:45]} 14. Bf5 {[%clk 0:02:42]}  Re8 {[%clk 0:02:36]} 15. Qd2 {[%clk 0:02:28]}  Nb6 {[%clk 0:02:17]} 16. Ne2 {[%clk 0:02:10]}  Ne4 {[%clk 0:02:12]} 17. Bxe4 {[%clk 0:02:07]}  Rxe4 {[%clk 0:02:13]} 18. Ng3 {[%clk 0:02:06]}  Re6 {[%clk 0:02:11]} 19. Rac1 {[%clk 0:01:53]}  Bf8 {[%clk 0:02:09]} 20. h3 {[%clk 0:01:40]}  a5 {[%clk 0:02:09]} 21. a4 {[%clk 0:01:39]}  Rg6 {[%clk 0:02:05]} 22. Ne5 {[%clk 0:01:37]}  Re6 {[%clk 0:02:02]} 23. Nd3 {[%clk 0:01:37]}  c4 {[%clk 0:01:15]} 24. Nf4 {[%clk 0:01:35]}  Rd6 {[%clk 0:01:15]} 25. Nf5 {[%clk 0:01:29]}  cxb3 {[%clk 0:01:15]} 26. Nxd6 {[%clk 0:01:18]}  Qxd6 {[%clk 0:01:16]} 27. Qd3 {[%clk 0:01:17]}  Qb4 {[%clk 0:01:06]} 28. Rc7 {[%clk 0:01:12]}  Bc8 {[%clk 0:00:43]} 29. Nxd5 {[%clk 0:01:07]}  Qd6 {[%clk 0:00:44]} 30. Nxb6 {[%clk 0:00:46]}  Qxb6 {[%clk 0:00:41]} 31. Qd8 {[%clk 0:00:46]}  Rb8 {[%clk 0:00:22]} 32. Rxc8 {[%clk 0:00:40]} 1-0

[Event "December 5 Late 2023"]
[Site "https://www.chess.com"]
[Date "2023.12.05"]
[Round "10"]
[White "Sattarov, Bobir"]
[Black "Drozdowski, Kacper"]
[Result "1-0"]
[Board "14"]
[TimeControl "180+1"]
[WhiteFideId "14203081"]
[BlackFideId "1136720"]
[WhiteElo "2764"]
[BlackElo "2987"]
[WhiteTeam "UZB"]
[BlackTeam "POL"]
[WhiteClock "0:00:05"]
[BlackClock "0:00:07"]

1. e4 {[%clk 0:03:00]}  c5 {[%clk 0:03:00]} 2. Nf3 {[%clk 0:03:00]}  e6 {[%clk 0:03:00]} 3. d4 {[%clk 0:03:00]}  cxd4 {[%clk 0:03:00]} 4. Nxd4 {[%clk 0:03:01]}  Nc6 {[%clk 0:03:00]} 5. Nxc6 {[%clk 0:03:01]}  bxc6 {[%clk 0:03:00]} 6. Bf4 {[%clk 0:02:56]}  d5 {[%clk 0:02:59]} 7. Nd2 {[%clk 0:02:55]}  Nf6 {[%clk 0:02:59]} 8. Bd3 {[%clk 0:02:55]}  Be7 {[%clk 0:02:58]} 9. Qe2 {[%clk 0:02:54]}  O-O {[%clk 0:02:57]} 10. O-O {[%clk 0:02:54]}  a5 {[%clk 0:02:56]} 11. Rad1 {[%clk 0:02:51]}  a4 {[%clk 0:02:53]} 12. c4 {[%clk 0:02:47]}  Ba6 {[%clk 0:02:42]} 13. Nf3 {[%clk 0:02:28]}  Qb6 {[%clk 0:02:35]} 14. Ne5 {[%clk 0:02:19]}  Rfd8 {[%clk 0:02:23]} 15. h3 {[%clk 0:02:06]}  h6 {[%clk 0:01:39]} 16. Bg3 {[%clk 0:01:58]}  dxc4 {[%clk 0:01:20]} 17. Bxc4 {[%clk 0:01:49]}  Bxc4 {[%clk 0:01:19]} 18. Qxc4 {[%clk 0:01:39]}  Rdc8 {[%clk 0:01:11]} 19. Nd7 {[%clk 0:01:24]}  Nxd7 {[%clk 0:01:05]} 20. Rxd7 {[%clk 0:01:25]}  Ra7 {[%clk 0:01:01]} 21. Rfd1 {[%clk 0:01:21]}  Rxd7 {[%clk 0:01:00]} 22. Rxd7 {[%clk 0:01:22]}  Bf8 {[%clk 0:00:43]} 23. Qe2 {[%clk 0:01:21]}  Re8 {[%clk 0:00:22]} 24. Qd2 {[%clk 0:01:08]}  Qb5 {[%clk 0:00:19]} 25. Kh2 {[%clk 0:01:01]}  Qc4 {[%clk 0:00:18]} 26. Rd8 {[%clk 0:00:47]}  Rxd8 {[%clk 0:00:13]} 27. Qxd8 {[%clk 0:00:48]}  Qb4 {[%clk 0:00:09]} 28. Qe8 {[%clk 0:00:40]}  Qe7 {[%clk 0:00:03]} 29. Qxc6 {[%clk 0:00:39]}  Qa7 {[%clk 0:00:04]} 30. Qe8 {[%clk 0:00:38]}  Qb6 {[%clk 0:00:04]} 31. a3 {[%clk 0:00:32]}  f6 {[%clk 0:00:03]} 32. Qxa4 {[%clk 0:00:19]}  Qxb2 {[%clk 0:00:03]} 33. Qa6 {[%clk 0:00:18]}  Qb3 {[%clk 0:00:03]} 34. a4 {[%clk 0:00:17]}  e5 {[%clk 0:00:04]} 35. Qb5 {[%clk 0:00:17]}  Qa2 {[%clk 0:00:03]} 36. a5 {[%clk 0:00:15]}  Kh7 {[%clk 0:00:03]} 37. a6 {[%clk 0:00:15]}  Bd6 {[%clk 0:00:03]} 38. Qb6 {[%clk 0:00:12]}  Qa3 {[%clk 0:00:03]} 39. a7 {[%clk 0:00:11]}  Bc5 {[%clk 0:00:03]} 40. Qxc5 {[%clk 0:00:11]}  Qxc5 {[%clk 0:00:03]} 41. a8=Q {[%clk 0:00:11]}  Qd4 {[%clk 0:00:04]} 42. Qd5 {[%clk 0:00:11]}  Qc3 {[%clk 0:00:04]} 43. h4 {[%clk 0:00:11]}  Qc8 {[%clk 0:00:04]} 44. f4 {[%clk 0:00:09]}  exf4 {[%clk 0:00:04]} 45. Bxf4 {[%clk 0:00:10]}  Kh8 {[%clk 0:00:04]} 46. Qf5 {[%clk 0:00:10]}  Qe8 {[%clk 0:00:04]} 47. e5 {[%clk 0:00:09]}  fxe5 {[%clk 0:00:05]} 48. Bxe5 {[%clk 0:00:10]}  Kg8 {[%clk 0:00:05]} 49. h5 {[%clk 0:00:09]}  Qe7 {[%clk 0:00:05]} 50. Bg3 {[%clk 0:00:08]}  Kh8 {[%clk 0:00:05]} 51. Kh3 {[%clk 0:00:08]}  Kg8 {[%clk 0:00:05]} 52. Kg4 {[%clk 0:00:08]}  Kh8 {[%clk 0:00:06]} 53. Bf4 {[%clk 0:00:08]}  Kg8 {[%clk 0:00:06]} 54. Qe5 {[%clk 0:00:08]}  Qd7+ {[%clk 0:00:06]} 55. Kf3 {[%clk 0:00:08]}  Qd1+ {[%clk 0:00:06]} 56. Kg3 {[%clk 0:00:08]}  Qd3+ {[%clk 0:00:06]} 57. Kg4 {[%clk 0:00:08]}  Qd7+ {[%clk 0:00:06]} 58. Qf5 {[%clk 0:00:07]}  Qd1+ {[%clk 0:00:07]} 59. Kg3 {[%clk 0:00:06]}  Qe1+ {[%clk 0:00:04]} 60. Kh3 {[%clk 0:00:06]}  Qh1+ {[%clk 0:00:04]} 61. Bh2 {[%clk 0:00:06]}  Qe1 {[%clk 0:00:04]} 62. Qd5+ {[%clk 0:00:06]}  Kh7 {[%clk 0:00:04]} 63. Qe5 {[%clk 0:00:06]}  Qd1 {[%clk 0:00:03]} 64. Qf5+ {[%clk 0:00:05]}  Kg8 {[%clk 0:00:03]} 65. Bg3 {[%clk 0:00:04]}  Qh1+ {[%clk 0:00:03]} 66. Bh2 {[%clk 0:00:04]}  Qd1 {[%clk 0:00:03]} 67. Qg4 {[%clk 0:00:04]}  Qd3+ {[%clk 0:00:04]} 68. Qf3 {[%clk 0:00:04]}  Qd7+ {[%clk 0:00:04]} 69. g4 {[%clk 0:00:04]}  Qe6 {[%clk 0:00:04]} 70. Bf4 {[%clk 0:00:04]}  Qc4 {[%clk 0:00:04]} 71. Kg3 {[%clk 0:00:03]}  Qe6 {[%clk 0:00:05]} 72. Qe3 {[%clk 0:00:04]}  Qd5 {[%clk 0:00:05]} 73. Be5 {[%clk 0:00:04]}  Qd7 {[%clk 0:00:04]} 74. Qc3 {[%clk 0:00:04]}  Qf7 {[%clk 0:00:04]} 75. Qc8+ {[%clk 0:00:02]}  Kh7 {[%clk 0:00:05]} 76. Qf5+ {[%clk 0:00:03]}  Kg8 {[%clk 0:00:04]} 77. Qxf7+ {[%clk 0:00:02]}  Kxf7 {[%clk 0:00:05]} 78. Kf4 {[%clk 0:00:03]}  g6 {[%clk 0:00:06]} 79. Ke4 {[%clk 0:00:03]}  gxh5 {[%clk 0:00:05]} 80. gxh5 {[%clk 0:00:04]}  Ke6 {[%clk 0:00:06]} 81. Kf4 {[%clk 0:00:03]}  Kf7 {[%clk 0:00:06]} 82. Kf5 {[%clk 0:00:04]}  Kg8 {[%clk 0:00:07]} 83. Kg6 {[%clk 0:00:04]}  Kf8 {[%clk 0:00:08]} 84. Kxh6 {[%clk 0:00:05]}  Kg8 {[%clk 0:00:07]} 85. Kg6 {[%clk 0:00:05]} 1-0